[Event "Titled Tuesday Blitz June 07 Late 2022"]
[White "Xiong, Jeffery"]
[Black "Terry, Renato"]
[WhiteFideId "2047640"]
[BlackFideId "3803457"]
[WhiteElo "2714"]
[BlackElo "2577"]
[Result "1/2-1/2"]
[Round "08"]
[TimeControl "180+1"]
[Date "2022.06.07"]
[WhiteClock "0:00:05"]
[BlackClock "0:00:05"]

1. d4 {[%clk 0:03:00]}  e6 {[%clk 0:02:59]} 2. e4 {[%clk 0:03:00]}  d5 {[%clk 0:02:59]} 3. e5 {[%clk 0:03:00]}  c5 {[%clk 0:02:59]} 4. c3 {[%clk 0:03:01]}  Qb6 {[%clk 0:02:59]} 5. Nf3 {[%clk 0:03:00]}  Bd7 {[%clk 0:03:00]} 6. Bd3 {[%clk 0:02:53]}  cxd4 {[%clk 0:03:00]} 7. Nxd4 {[%clk 0:02:53]}  Nc6 {[%clk 0:03:00]} 8. Nxc6 {[%clk 0:02:53]}  bxc6 {[%clk 0:02:54]} 9. O-O {[%clk 0:02:53]}  Ne7 {[%clk 0:02:54]} 10. Nd2 {[%clk 0:02:38]}  Ng6 {[%clk 0:02:44]} 11. Nf3 {[%clk 0:02:38]}  Be7 {[%clk 0:02:44]} 12. Re1 {[%clk 0:02:26]}  O-O {[%clk 0:02:35]} 13. h4 {[%clk 0:02:26]}  Rfe8 {[%clk 0:02:12]} 14. h5 {[%clk 0:02:26]}  Nh4 {[%clk 0:02:08]} 15. Ng5 {[%clk 0:02:17]}  h6 {[%clk 0:01:59]} 16. Nh3 {[%clk 0:02:17]}  Rab8 {[%clk 0:01:19]} 17. Qg4 {[%clk 0:02:13]}  Nf5 {[%clk 0:01:19]} 18. b3 {[%clk 0:01:51]}  c5 {[%clk 0:01:02]} 19. Bf4 {[%clk 0:01:50]}  c4 {[%clk 0:00:54]} 20. Bxf5 {[%clk 0:01:29]}  exf5 {[%clk 0:00:54]} 21. Qg3 {[%clk 0:01:30]}  Qe6 {[%clk 0:00:19]} 22. Be3 {[%clk 0:01:24]}  a5 {[%clk 0:00:10]} 23. Nf4 {[%clk 0:01:23]}  Qc6 {[%clk 0:00:11]} 24. Rad1 {[%clk 0:01:20]}  Be6 {[%clk 0:00:10]} 25. Ne2 {[%clk 0:00:52]}  Kh7 {[%clk 0:00:09]} 26. Qf3 {[%clk 0:00:49]}  cxb3 {[%clk 0:00:06]} 27. axb3 {[%clk 0:00:50]}  Rxb3 {[%clk 0:00:07]} 28. Nd4 {[%clk 0:00:49]}  Qxc3 {[%clk 0:00:07]} 29. Rc1 {[%clk 0:00:45]}  Qb4 {[%clk 0:00:06]} 30. Nxb3 {[%clk 0:00:32]}  Qxb3 {[%clk 0:00:07]} 31. Rb1 {[%clk 0:00:33]}  Qa4 {[%clk 0:00:07]} 32. Ra1 {[%clk 0:00:33]}  Qb5 {[%clk 0:00:06]} 33. Bd2 {[%clk 0:00:33]}  Bb4 {[%clk 0:00:05]} 34. Reb1 {[%clk 0:00:32]}  Rb8 {[%clk 0:00:05]} 35. Qe3 {[%clk 0:00:24]}  Qc4 {[%clk 0:00:06]} 36. Bxb4 {[%clk 0:00:23]}  axb4 {[%clk 0:00:07]} 37. Ra4 {[%clk 0:00:15]}  Qb5 {[%clk 0:00:02]} 38. Qb3 {[%clk 0:00:08]}  Qe2 {[%clk 0:00:02]} 39. Rxb4 {[%clk 0:00:05]}  Rxb4 {[%clk 0:00:03]} 40. Qxb4 {[%clk 0:00:05]}  Qxh5 {[%clk 0:00:03]} 41. Re1 {[%clk 0:00:04]}  Qg4 {[%clk 0:00:03]} 42. Qd2 {[%clk 0:00:02]}  d4 {[%clk 0:00:02]} 43. f3 {[%clk 0:00:03]}  Qg3 {[%clk 0:00:03]} 44. Qf2 {[%clk 0:00:03]}  Qf4 {[%clk 0:00:03]} 45. Rd1 {[%clk 0:00:03]}  Qxe5 {[%clk 0:00:03]} 46. Qxd4 {[%clk 0:00:03]}  Qg3 {[%clk 0:00:03]} 47. Qf2 {[%clk 0:00:04]}  Qg5 {[%clk 0:00:04]} 48. Qd2 {[%clk 0:00:04]}  Qg3 {[%clk 0:00:04]} 49. Qd4 {[%clk 0:00:05]}  Qg5 {[%clk 0:00:04]} 50. Re1 {[%clk 0:00:05]}  Qg3 {[%clk 0:00:03]} 51. Qe5 {[%clk 0:00:05]}  Qg5 {[%clk 0:00:03]} 52. Kf2 {[%clk 0:00:05]}  Qh4+ {[%clk 0:00:04]} 53. Kg1 {[%clk 0:00:03]}  Qg5 {[%clk 0:00:04]} 54. Qe3 {[%clk 0:00:03]}  Qh4 {[%clk 0:00:04]} 55. Qf2 {[%clk 0:00:03]}  Qg5 {[%clk 0:00:05]} 56. Rd1 {[%clk 0:00:04]}  Qf4 {[%clk 0:00:05]} 57. Qd4 {[%clk 0:00:04]}  Qg3 {[%clk 0:00:05]} 58. Qd2 {[%clk 0:00:04]}  Qh4 {[%clk 0:00:05]} 59. Re1 {[%clk 0:00:04]}  Qg3 {[%clk 0:00:05]} 60. Re3 {[%clk 0:00:04]}  Qg5 {[%clk 0:00:05]} 61. Rd3 {[%clk 0:00:05]}  Qg3 {[%clk 0:00:05]} 62. Rd4 {[%clk 0:00:05]}  Qg6 {[%clk 0:00:04]} 63. Qe3 {[%clk 0:00:05]}  Qf6 {[%clk 0:00:04]} 64. Qf4 {[%clk 0:00:06]}  Qe7 {[%clk 0:00:04]} 65. Qe5 {[%clk 0:00:06]}  Qg5 {[%clk 0:00:04]} 66. Kh2 {[%clk 0:00:05]}  Qh5+ {[%clk 0:00:04]} 67. Kg1 {[%clk 0:00:05]}  Qg5 {[%clk 0:00:05]} 68. Kf2 {[%clk 0:00:06]}  Qh5 {[%clk 0:00:04]} 69. Qg3 {[%clk 0:00:06]}  Qh1 {[%clk 0:00:03]} 70. Qf4 {[%clk 0:00:07]}  Qa1 {[%clk 0:00:03]} 71. Qd2 {[%clk 0:00:07]}  Qa7 {[%clk 0:00:03]} 72. Qe3 {[%clk 0:00:07]}  Qe7 {[%clk 0:00:03]} 73. Qe5 {[%clk 0:00:06]}  Qg5 {[%clk 0:00:03]} 74. Qf4 {[%clk 0:00:05]}  Qf6 {[%clk 0:00:03]} 75. Qd2 {[%clk 0:00:06]}  Qg6 {[%clk 0:00:03]} 76. Qd3 {[%clk 0:00:05]}  Qf6 {[%clk 0:00:03]} 77. Qe3 {[%clk 0:00:05]}  Qg6 {[%clk 0:00:03]} 78. Rd2 {[%clk 0:00:05]}  Qf6 {[%clk 0:00:04]} 79. Qf4 {[%clk 0:00:06]}  Qg6 {[%clk 0:00:04]} 80. Re2 {[%clk 0:00:06]}  Qf6 {[%clk 0:00:04]} 81. Qe5 {[%clk 0:00:05]}  Qd8 {[%clk 0:00:04]} 82. Qe3 {[%clk 0:00:04]}  Qh4+ {[%clk 0:00:04]} 83. Kg1 {[%clk 0:00:05]}  Qg3 {[%clk 0:00:05]} 84. Qe5 {[%clk 0:00:05]}  Qg5 {[%clk 0:00:05]} 85. Qe3 {[%clk 0:00:05]}  Qh4 {[%clk 0:00:05]} 86. Qe5 {[%clk 0:00:05]} 1/2-1/2


[Site "https://www.chess.com"]

[Event "Titled Tuesday Blitz June 07 Late 2022"]
[White "Zhurbinsky, David"]
[Black "Wieczorek, Oskar"]
[WhiteFideId "2072904"]
[BlackFideId "1133950"]
[WhiteElo "2570"]
[BlackElo "2330"]
[Result "0-1"]
[Round "08"]
[TimeControl "180+1"]
[Date "2022.06.07"]
[WhiteClock "0:00:23"]
[BlackClock "0:00:30"]

1. e4 {[%clk 0:02:59]}  c5 {[%clk 0:03:00]} 2. Nf3 {[%clk 0:03:00]}  e6 {[%clk 0:03:00]} 3. c4 {[%clk 0:03:00]}  Nc6 {[%clk 0:02:55]} 4. d4 {[%clk 0:03:00]}  cxd4 {[%clk 0:02:56]} 5. Nxd4 {[%clk 0:03:01]}  Nf6 {[%clk 0:02:57]} 6. Nc3 {[%clk 0:03:02]}  Bb4 {[%clk 0:02:58]} 7. Nxc6 {[%clk 0:03:02]}  bxc6 {[%clk 0:02:59]} 8. Bd3 {[%clk 0:03:02]}  e5 {[%clk 0:02:58]} 9. O-O {[%clk 0:03:02]}  O-O {[%clk 0:02:59]} 10. Be3 {[%clk 0:02:56]}  d6 {[%clk 0:02:53]} 11. h3 {[%clk 0:02:56]}  Be6 {[%clk 0:02:36]} 12. Qc2 {[%clk 0:02:53]}  Nd7 {[%clk 0:02:36]} 13. a3 {[%clk 0:02:45]}  Bc5 {[%clk 0:02:36]} 14. Bxc5 {[%clk 0:02:42]}  Nxc5 {[%clk 0:02:33]} 15. b4 {[%clk 0:02:42]}  Nd7 {[%clk 0:02:22]} 16. Rad1 {[%clk 0:02:42]}  Qc7 {[%clk 0:02:19]} 17. Ne2 {[%clk 0:02:27]}  a5 {[%clk 0:02:04]} 18. f4 {[%clk 0:02:04]}  exf4 {[%clk 0:01:58]} 19. Nxf4 {[%clk 0:01:59]}  axb4 {[%clk 0:01:59]} 20. axb4 {[%clk 0:01:56]}  Qb6+ {[%clk 0:01:48]} 21. Kh1 {[%clk 0:01:55]}  Qxb4 {[%clk 0:01:46]} 22. Rb1 {[%clk 0:01:52]}  Qa4 {[%clk 0:01:33]} 23. Nxe6 {[%clk 0:01:10]}  Qxc2 {[%clk 0:01:26]} 24. Bxc2 {[%clk 0:01:11]}  fxe6 {[%clk 0:01:26]} 25. Rfd1 {[%clk 0:01:11]}  Ne5 {[%clk 0:00:35]} 26. Rxd6 {[%clk 0:01:08]}  Kf7 {[%clk 0:00:35]} 27. Rb7+ {[%clk 0:00:55]}  Kf6 {[%clk 0:00:34]} 28. Bb3 {[%clk 0:00:42]}  Rab8 {[%clk 0:00:31]} 29. Rxb8 {[%clk 0:00:19]}  Rxb8 {[%clk 0:00:32]} 30. Ba4 {[%clk 0:00:15]}  Ra8 {[%clk 0:00:24]} 31. Bc2 {[%clk 0:00:08]}  Ra2 {[%clk 0:00:23]} 32. Bb3 {[%clk 0:00:07]}  Ra3 {[%clk 0:00:23]} 33. Bc2 {[%clk 0:00:07]}  Rc3 {[%clk 0:00:24]} 34. Ba4 {[%clk 0:00:05]}  Ke7 {[%clk 0:00:24]} 35. Rd4 {[%clk 0:00:04]}  c5 {[%clk 0:00:24]} 36. Rd2 {[%clk 0:00:04]}  Rxc4 {[%clk 0:00:24]} 37. Bb5 {[%clk 0:00:04]}  Rxe4 {[%clk 0:00:23]} 38. Kh2 {[%clk 0:00:04]}  Rd4 {[%clk 0:00:23]} 39. Rc2 {[%clk 0:00:04]}  c4 {[%clk 0:00:22]} 40. Re2 {[%clk 0:00:05]}  Kd6 {[%clk 0:00:23]} 41. Ra2 {[%clk 0:00:03]}  Kc5 {[%clk 0:00:19]} 42. Ba4 {[%clk 0:00:04]}  c3 {[%clk 0:00:19]} 43. Bb3 {[%clk 0:00:03]}  Rd2 {[%clk 0:00:16]} 44. Ra5+ {[%clk 0:00:03]}  Kb4 {[%clk 0:00:16]} 45. Rxe5 {[%clk 0:00:03]}  Kxb3 {[%clk 0:00:17]} 46. Rxe6 {[%clk 0:00:04]}  c2 {[%clk 0:00:17]} 47. Rb6+ {[%clk 0:00:05]}  Kc3 {[%clk 0:00:17]} 48. Rc6+ {[%clk 0:00:06]}  Kb2 {[%clk 0:00:17]} 49. Rb6+ {[%clk 0:00:06]}  Kc1 {[%clk 0:00:17]} 50. Kg3 {[%clk 0:00:06]}  Kd1 {[%clk 0:00:18]} 51. Rf6 {[%clk 0:00:04]}  gxf6 {[%clk 0:00:16]} 52. Kh2 {[%clk 0:00:05]}  c1=Q {[%clk 0:00:17]} 53. h4 {[%clk 0:00:06]}  Qc7+ {[%clk 0:00:16]} 54. Kh3 {[%clk 0:00:07]}  Rd3+ {[%clk 0:00:17]} 55. Kg4 {[%clk 0:00:07]}  Rg3+ {[%clk 0:00:17]} 56. Kh5 {[%clk 0:00:08]}  Rxg2 {[%clk 0:00:16]} 57. Kh6 {[%clk 0:00:09]}  Rg4 {[%clk 0:00:16]} 58. h5 {[%clk 0:00:10]}  Rg6+ {[%clk 0:00:16]} 59. hxg6 {[%clk 0:00:10]}  hxg6 {[%clk 0:00:16]} 60. Kxg6 {[%clk 0:00:10]}  Qe5 {[%clk 0:00:17]} 61. Kf7 {[%clk 0:00:10]}  f5 {[%clk 0:00:17]} 62. Kg6 {[%clk 0:00:11]}  f4 {[%clk 0:00:18]} 63. Kf7 {[%clk 0:00:12]}  f3 {[%clk 0:00:19]} 64. Kg6 {[%clk 0:00:13]}  f2 {[%clk 0:00:20]} 65. Kh7 {[%clk 0:00:13]}  Qf6 {[%clk 0:00:19]} 66. Kg8 {[%clk 0:00:14]}  Qe7 {[%clk 0:00:20]} 67. Kh8 {[%clk 0:00:15]}  f1=Q {[%clk 0:00:20]} 68. Kg8 {[%clk 0:00:16]}  Qb5 {[%clk 0:00:20]} 69. Kh8 {[%clk 0:00:17]}  Qbb7 {[%clk 0:00:21]} 70. Kg8 {[%clk 0:00:18]}  Kd2 {[%clk 0:00:21]} 71. Kh8 {[%clk 0:00:18]}  Kd3 {[%clk 0:00:22]} 72. Kg8 {[%clk 0:00:19]}  Kd4 {[%clk 0:00:23]} 73. Kh8 {[%clk 0:00:19]}  Kd5 {[%clk 0:00:24]} 74. Kg8 {[%clk 0:00:20]}  Kd6 {[%clk 0:00:25]} 75. Kh8 {[%clk 0:00:21]}  Kd7 {[%clk 0:00:26]} 76. Kg8 {[%clk 0:00:22]}  Kd8 {[%clk 0:00:26]} 77. Kh8 {[%clk 0:00:22]}  Qc8 {[%clk 0:00:27]} 78. Kg8 {[%clk 0:00:22]}  Ke8 {[%clk 0:00:28]} 79. Kh8 {[%clk 0:00:23]}  Qcd8 {[%clk 0:00:29]} 80. Kg8 {[%clk 0:00:23]}  Kd7# {[%clk 0:00:30]} 0-1


[Site "https://www.chess.com"]

[Event "Titled Tuesday Blitz June 07 Late 2022"]
[White "Bluebaum, Matthias"]
[Black "Abarca Gonzalez, Nicolas"]
[WhiteFideId "24651516"]
[BlackFideId "3409422"]
[WhiteElo "2556"]
[BlackElo "2504"]
[Result "0-1"]
[Round "09"]
[TimeControl "180+1"]
[Date "2022.06.07"]
[WhiteClock "0:00:04"]
[BlackClock "0:00:08"]

1. d4 {[%clk 0:03:00]}  Nf6 {[%clk 0:02:54]} 2. c4 {[%clk 0:03:00]}  e5 {[%clk 0:02:54]} 3. dxe5 {[%clk 0:02:57]}  Ng4 {[%clk 0:02:55]} 4. Bf4 {[%clk 0:02:56]}  g5 {[%clk 0:02:54]} 5. Bd2 {[%clk 0:02:56]}  Bg7 {[%clk 0:02:54]} 6. Nf3 {[%clk 0:02:56]}  Nc6 {[%clk 0:02:53]} 7. Bxg5 {[%clk 0:02:56]}  f6 {[%clk 0:02:34]} 8. exf6 {[%clk 0:02:56]}  Bxf6 {[%clk 0:02:31]} 9. Bxf6 {[%clk 0:02:55]}  Qxf6 {[%clk 0:02:32]} 10. Nc3 {[%clk 0:02:54]}  O-O {[%clk 0:02:27]} 11. Qd2 {[%clk 0:02:48]}  d6 {[%clk 0:02:25]} 12. e3 {[%clk 0:02:27]}  Be6 {[%clk 0:02:21]} 13. Be2 {[%clk 0:02:11]}  Rae8 {[%clk 0:02:18]} 14. Nd5 {[%clk 0:02:07]}  Qg7 {[%clk 0:02:16]} 15. h3 {[%clk 0:02:05]}  Nf6 {[%clk 0:02:01]} 16. Nxf6+ {[%clk 0:02:02]}  Rxf6 {[%clk 0:02:02]} 17. O-O-O {[%clk 0:02:01]}  a5 {[%clk 0:01:59]} 18. a3 {[%clk 0:01:48]}  Rf5 {[%clk 0:01:39]} 19. Qc2 {[%clk 0:01:27]}  Rc5 {[%clk 0:01:38]} 20. Nd4 {[%clk 0:01:24]}  Bf7 {[%clk 0:01:37]} 21. Nf5 {[%clk 0:01:14]}  Qf6 {[%clk 0:01:30]} 22. g4 {[%clk 0:01:13]}  b5 {[%clk 0:01:23]} 23. Kb1 {[%clk 0:00:58]}  bxc4 {[%clk 0:01:20]} 24. Qc3 {[%clk 0:00:52]}  Ne5 {[%clk 0:01:01]} 25. f4 {[%clk 0:00:50]}  Nd7 {[%clk 0:01:02]} 26. Rd4 {[%clk 0:00:35]}  Rb8 {[%clk 0:00:47]} 27. Ka1 {[%clk 0:00:32]}  Rb3 {[%clk 0:00:45]} 28. Rb1 {[%clk 0:00:08]}  Rxc3 {[%clk 0:00:34]} 29. bxc3 {[%clk 0:00:09]}  Bg6 {[%clk 0:00:35]} 30. Bxc4+ {[%clk 0:00:07]}  Kf8 {[%clk 0:00:32]} 31. e4 {[%clk 0:00:07]}  Bxf5 {[%clk 0:00:29]} 32. gxf5 {[%clk 0:00:08]}  Nb6 {[%clk 0:00:28]} 33. Be6 {[%clk 0:00:06]}  Rxc3 {[%clk 0:00:28]} 34. e5 {[%clk 0:00:06]}  dxe5 {[%clk 0:00:26]} 35. fxe5 {[%clk 0:00:02]}  Qxe6 {[%clk 0:00:26]} 36. fxe6 {[%clk 0:00:02]}  Ke7 {[%clk 0:00:23]} 37. Rh4 {[%clk 0:00:02]}  Rxa3+ {[%clk 0:00:22]} 38. Kb2 {[%clk 0:00:02]}  Re3 {[%clk 0:00:21]} 39. Rxh7+ {[%clk 0:00:02]}  Kxe6 {[%clk 0:00:21]} 40. Rc1 {[%clk 0:00:03]}  Nd5 {[%clk 0:00:18]} 41. Rc6+ {[%clk 0:00:03]}  Kxe5 {[%clk 0:00:17]} 42. Rc5 {[%clk 0:00:04]}  Kd4 {[%clk 0:00:16]} 43. Rxa5 {[%clk 0:00:05]}  Re2+ {[%clk 0:00:15]} 44. Kb3 {[%clk 0:00:05]}  Re3+ {[%clk 0:00:14]} 45. Kc2 {[%clk 0:00:04]}  Re2+ {[%clk 0:00:13]} 46. Kd1 {[%clk 0:00:04]}  Nc3+ {[%clk 0:00:11]} 47. Kc1 {[%clk 0:00:05]}  Na2+ {[%clk 0:00:10]} 48. Kb1 {[%clk 0:00:06]}  Nc3+ {[%clk 0:00:11]} 49. Ka1 {[%clk 0:00:06]}  c5 {[%clk 0:00:07]} 50. Rb7 {[%clk 0:00:03]}  Re1+ {[%clk 0:00:06]} 51. Kb2 {[%clk 0:00:03]}  Rb1+ {[%clk 0:00:06]} 52. Kc2 {[%clk 0:00:02]}  Rxb7 {[%clk 0:00:07]} 53. h4 {[%clk 0:00:03]}  Nd5 {[%clk 0:00:07]} 54. h5 {[%clk 0:00:03]}  Rh7 {[%clk 0:00:07]} 55. Ra4+ {[%clk 0:00:03]}  c4 {[%clk 0:00:08]} 56. Ra8 {[%clk 0:00:03]}  Rxh5 {[%clk 0:00:08]} 57. Rg8 {[%clk 0:00:04]}  Rh2+ {[%clk 0:00:08]} 58. Kd1 {[%clk 0:00:05]}  Kd3 {[%clk 0:00:08]} 59. Rg3+ {[%clk 0:00:04]}  Ne3+ {[%clk 0:00:09]} 60. Kc1 {[%clk 0:00:05]}  Rc2+ {[%clk 0:00:09]} 61. Kb1 {[%clk 0:00:06]}  Re2 {[%clk 0:00:09]} 62. Ka1 {[%clk 0:00:06]}  c3 {[%clk 0:00:10]} 63. Rg1 {[%clk 0:00:06]}  c2 {[%clk 0:00:10]} 64. Kb2 {[%clk 0:00:07]}  Nd1+ {[%clk 0:00:09]} 65. Kc1 {[%clk 0:00:07]}  Ne3 {[%clk 0:00:10]} 66. Rh1 {[%clk 0:00:07]}  Rd2 {[%clk 0:00:10]} 67. Kb2 {[%clk 0:00:03]}  Rd1 {[%clk 0:00:09]} 68. Rh2 {[%clk 0:00:03]}  c1=Q+ {[%clk 0:00:09]} 69. Ka2 {[%clk 0:00:03]}  Qc4+ {[%clk 0:00:08]} 70. Ka3 {[%clk 0:00:03]}  Ra1+ {[%clk 0:00:08]} 71. Ra2 {[%clk 0:00:04]}  Rxa2# {[%clk 0:00:08]} 0-1


[Site "https://www.chess.com"]

[Event "Titled Tuesday Blitz June 07 Late 2022"]
[White "Bringas Gomez, Artai"]
[Black "Korchmar, Vasiliy"]
[WhiteFideId "24534064"]
[BlackFideId "24131750"]
[WhiteElo "1988"]
[BlackElo "2370"]
[Result "0-1"]
[Round "09"]
[TimeControl "180+1"]
[Date "2022.06.07"]
[WhiteClock "0:00:07"]
[BlackClock "0:00:18"]

1. d4 {[%clk 0:02:55]}  Nf6 {[%clk 0:02:58]} 2. c4 {[%clk 0:02:54]}  c6 {[%clk 0:02:57]} 3. Nf3 {[%clk 0:02:52]}  d5 {[%clk 0:02:57]} 4. g3 {[%clk 0:02:52]}  g6 {[%clk 0:02:54]} 5. Bg2 {[%clk 0:02:52]}  Bg7 {[%clk 0:02:54]} 6. O-O {[%clk 0:02:52]}  O-O {[%clk 0:02:55]} 7. Nc3 {[%clk 0:02:51]}  dxc4 {[%clk 0:02:53]} 8. e4 {[%clk 0:02:50]}  Nbd7 {[%clk 0:02:15]} 9. Qe2 {[%clk 0:02:37]}  Nb6 {[%clk 0:02:15]} 10. Rd1 {[%clk 0:02:34]}  Be6 {[%clk 0:02:06]} 11. Bf4 {[%clk 0:02:16]}  Qc8 {[%clk 0:02:06]} 12. Rac1 {[%clk 0:02:13]}  Bh3 {[%clk 0:02:05]} 13. Bh1 {[%clk 0:02:13]}  Bg4 {[%clk 0:02:04]} 14. Rd2 {[%clk 0:01:58]}  Re8 {[%clk 0:02:04]} 15. Qf1 {[%clk 0:01:56]}  Nfd7 {[%clk 0:01:57]} 16. Be3 {[%clk 0:01:46]}  e5 {[%clk 0:01:50]} 17. Nxe5 {[%clk 0:01:28]}  Nxe5 {[%clk 0:01:48]} 18. dxe5 {[%clk 0:01:28]}  Bxe5 {[%clk 0:01:48]} 19. Bxb6 {[%clk 0:01:25]}  axb6 {[%clk 0:01:49]} 20. Qxc4 {[%clk 0:01:25]}  b5 {[%clk 0:01:36]} 21. Qc5 {[%clk 0:01:18]}  Bg7 {[%clk 0:01:30]} 22. f4 {[%clk 0:01:12]}  h5 {[%clk 0:01:26]} 23. e5 {[%clk 0:01:12]}  Rd8 {[%clk 0:01:07]} 24. Rd6 {[%clk 0:00:56]}  Bf8 {[%clk 0:01:04]} 25. Ne4 {[%clk 0:00:46]}  Bxd6 {[%clk 0:01:02]} 26. exd6 {[%clk 0:00:47]}  Qe6 {[%clk 0:00:46]} 27. Qd4 {[%clk 0:00:47]}  Bf5 {[%clk 0:00:43]} 28. Nf6+ {[%clk 0:00:46]}  Kf8 {[%clk 0:00:42]} 29. Nh7+ {[%clk 0:00:47]}  Kg8 {[%clk 0:00:42]} 30. Nf6+ {[%clk 0:00:47]}  Kh8 {[%clk 0:00:38]} 31. Ne8+ {[%clk 0:00:45]}  f6 {[%clk 0:00:37]} 32. Nc7 {[%clk 0:00:39]}  Rxd6 {[%clk 0:00:35]} 33. Nxe6 {[%clk 0:00:39]}  Rxd4 {[%clk 0:00:32]} 34. Nxd4 {[%clk 0:00:40]}  Rxa2 {[%clk 0:00:33]} 35. Nxf5 {[%clk 0:00:40]}  gxf5 {[%clk 0:00:33]} 36. Rc2 {[%clk 0:00:41]}  Ra1+ {[%clk 0:00:30]} 37. Kg2 {[%clk 0:00:41]}  Rb1 {[%clk 0:00:25]} 38. h3 {[%clk 0:00:41]}  Kg7 {[%clk 0:00:25]} 39. Kh2 {[%clk 0:00:41]}  b4 {[%clk 0:00:20]} 40. Bf3 {[%clk 0:00:41]}  b3 {[%clk 0:00:18]} 41. Re2 {[%clk 0:00:40]}  Rc1 {[%clk 0:00:15]} 42. Bxh5 {[%clk 0:00:38]}  c5 {[%clk 0:00:10]} 43. Kg2 {[%clk 0:00:38]}  c4 {[%clk 0:00:10]} 44. Kf2 {[%clk 0:00:38]}  b5 {[%clk 0:00:11]} 45. Ke3 {[%clk 0:00:34]}  b4 {[%clk 0:00:09]} 46. Kd2 {[%clk 0:00:24]}  Rb1 {[%clk 0:00:09]} 47. Ke3 {[%clk 0:00:19]}  c3 {[%clk 0:00:09]} 48. Kd3 {[%clk 0:00:14]}  Rxb2 {[%clk 0:00:04]} 49. Re7+ {[%clk 0:00:13]}  Kh6 {[%clk 0:00:04]} 50. Bf7 {[%clk 0:00:10]}  Rd2+ {[%clk 0:00:04]} 51. Ke3 {[%clk 0:00:09]}  b2 {[%clk 0:00:04]} 52. Ba2 {[%clk 0:00:09]}  Rd1 {[%clk 0:00:04]} 53. Rd7 {[%clk 0:00:06]}  Rxd7 {[%clk 0:00:03]} 54. Bb1 {[%clk 0:00:04]}  Re7+ {[%clk 0:00:04]} 55. Kd3 {[%clk 0:00:04]}  b3 {[%clk 0:00:05]} 56. Kxc3 {[%clk 0:00:04]}  Re3+ {[%clk 0:00:05]} 57. Kxb2 {[%clk 0:00:04]}  Rxg3 {[%clk 0:00:05]} 58. Bxf5 {[%clk 0:00:05]}  Rf3 {[%clk 0:00:04]} 59. Bc8 {[%clk 0:00:06]}  Rxf4 {[%clk 0:00:03]} 60. Kxb3 {[%clk 0:00:07]}  Kg5 {[%clk 0:00:03]} 61. Kc3 {[%clk 0:00:07]}  Re4 {[%clk 0:00:03]} 62. Kd3 {[%clk 0:00:07]}  Re5 {[%clk 0:00:04]} 63. Bb7 {[%clk 0:00:05]}  Kh4 {[%clk 0:00:04]} 64. Bf3 {[%clk 0:00:02]}  Re7 {[%clk 0:00:05]} 65. Bg4 {[%clk 0:00:02]}  Kg3 {[%clk 0:00:05]} 66. Bc8 {[%clk 0:00:01]}  Kf4 {[%clk 0:00:06]} 67. Bg4 {[%clk 0:00:01]}  Re5 {[%clk 0:00:07]} 68. Be2 {[%clk 0:00:02]}  Re3+ {[%clk 0:00:08]} 69. Kd2 {[%clk 0:00:02]}  f5 {[%clk 0:00:09]} 70. Bf1 {[%clk 0:00:02]}  Re5 {[%clk 0:00:08]} 71. Bg2 {[%clk 0:00:03]}  Re7 {[%clk 0:00:09]} 72. Bf1 {[%clk 0:00:03]}  Kg3 {[%clk 0:00:10]} 73. Kd1 {[%clk 0:00:04]}  f4 {[%clk 0:00:10]} 74. Bd3 {[%clk 0:00:04]}  Kxh3 {[%clk 0:00:10]} 75. Be2 {[%clk 0:00:04]}  Kg3 {[%clk 0:00:11]} 76. Bh5 {[%clk 0:00:05]}  f3 {[%clk 0:00:12]} 77. Bg6 {[%clk 0:00:05]}  f2 {[%clk 0:00:13]} 78. Bd3 {[%clk 0:00:05]}  Kh2 {[%clk 0:00:14]} 79. Kd2 {[%clk 0:00:06]}  Kg1 {[%clk 0:00:14]} 80. Ba6 {[%clk 0:00:04]}  Ra7 {[%clk 0:00:14]} 81. Bf1 {[%clk 0:00:05]}  Kxf1 {[%clk 0:00:13]} 82. Ke3 {[%clk 0:00:06]}  Kg2 {[%clk 0:00:13]} 83. Kf4 {[%clk 0:00:06]}  f1=Q+ {[%clk 0:00:14]} 84. Kg4 {[%clk 0:00:07]}  Qc4+ {[%clk 0:00:14]} 85. Kh5 {[%clk 0:00:07]}  Ra5+ {[%clk 0:00:15]} 86. Kh6 {[%clk 0:00:07]}  Qc6+ {[%clk 0:00:16]} 87. Kh7 {[%clk 0:00:07]}  Ra7+ {[%clk 0:00:17]} 88. Kh8 {[%clk 0:00:07]}  Qa8# {[%clk 0:00:18]} 0-1


[Site "https://www.chess.com"]

[Event "Titled Tuesday Blitz June 07 Late 2022"]
[White "Bryakin, Mikhail"]
[Black "Florescu, Codrut-Constantin"]
[WhiteFideId "4165314"]
[BlackFideId "1202200"]
[WhiteElo "2417"]
[BlackElo "2191"]
[Result "1-0"]
[Round "09"]
[TimeControl "180+1"]
[Date "2022.06.07"]
[WhiteClock "0:01:51"]
[BlackClock "0:00:41"]

1. e4 {[%clk 0:03:00]}  c5 {[%clk 0:02:58]} 2. a3 {[%clk 0:03:00]}  e5 {[%clk 0:02:56]} 3. Bc4 {[%clk 0:02:59]}  d6 {[%clk 0:02:55]} 4. Nc3 {[%clk 0:03:00]}  Nf6 {[%clk 0:02:54]} 5. d3 {[%clk 0:02:59]}  Be7 {[%clk 0:02:54]} 6. f4 {[%clk 0:03:00]}  exf4 {[%clk 0:02:52]} 7. Bxf4 {[%clk 0:03:01]}  O-O {[%clk 0:02:51]} 8. Nf3 {[%clk 0:03:01]}  Nc6 {[%clk 0:02:51]} 9. O-O {[%clk 0:03:02]}  Be6 {[%clk 0:02:47]} 10. Qd2 {[%clk 0:03:00]}  Ng4 {[%clk 0:02:43]} 11. Rae1 {[%clk 0:02:59]}  Bf6 {[%clk 0:02:41]} 12. Nd5 {[%clk 0:02:54]}  Bxd5 {[%clk 0:02:36]} 13. Bxd5 {[%clk 0:02:54]}  Nge5 {[%clk 0:02:27]} 14. c3 {[%clk 0:02:54]}  Rc8 {[%clk 0:02:20]} 15. Kh1 {[%clk 0:02:54]}  b6 {[%clk 0:02:13]} 16. Rg1 {[%clk 0:02:53]}  Ne7 {[%clk 0:02:09]} 17. Ba2 {[%clk 0:02:53]}  N7g6 {[%clk 0:02:09]} 18. Bg3 {[%clk 0:02:49]}  b5 {[%clk 0:02:02]} 19. Nxe5 {[%clk 0:02:35]}  Bxe5 {[%clk 0:02:01]} 20. Bxe5 {[%clk 0:02:35]}  dxe5 {[%clk 0:02:00]} 21. Bd5 {[%clk 0:02:35]}  Nf4 {[%clk 0:02:00]} 22. c4 {[%clk 0:02:36]}  Nxd5 {[%clk 0:01:58]} 23. exd5 {[%clk 0:02:36]}  Qd6 {[%clk 0:01:53]} 24. Rgf1 {[%clk 0:02:34]}  f5 {[%clk 0:01:52]} 25. b3 {[%clk 0:02:32]}  bxc4 {[%clk 0:01:50]} 26. bxc4 {[%clk 0:02:32]}  Rce8 {[%clk 0:01:47]} 27. Rf2 {[%clk 0:02:30]}  e4 {[%clk 0:01:44]} 28. Rfe2 {[%clk 0:02:30]}  Re5 {[%clk 0:01:27]} 29. dxe4 {[%clk 0:02:28]}  f4 {[%clk 0:01:27]} 30. Rf1 {[%clk 0:02:26]}  g5 {[%clk 0:01:27]} 31. Qd3 {[%clk 0:02:22]}  Rf6 {[%clk 0:01:25]} 32. Ref2 {[%clk 0:02:18]}  Qe7 {[%clk 0:01:20]} 33. Kg1 {[%clk 0:02:10]}  Rxe4 {[%clk 0:01:18]} 34. Rb2 {[%clk 0:02:06]}  Re1 {[%clk 0:01:10]} 35. Rd2 {[%clk 0:01:57]}  Re3 {[%clk 0:01:02]} 36. d6 {[%clk 0:01:53]}  Qd7 {[%clk 0:00:45]} 37. Qd5+ {[%clk 0:01:52]}  Kg7 {[%clk 0:00:43]} 38. Qxg5+ {[%clk 0:01:52]}  Rg6 {[%clk 0:00:42]} 39. Qxf4 {[%clk 0:01:52]}  Ree6 {[%clk 0:00:41]} 40. Qf8# {[%clk 0:01:51]} 1-0


[Site "https://www.chess.com"]